fUST/lending_fUST_20240525
["ID","MTS","AMOUNT","RATE_DAILY","PERIOD"]
[327893526,1716583844995,-744.22,0.00028219,15]
[327893527,1716583845004,-1992.29,0.00028219,15]
[327893528,1716583845014,-1621.54,0.00028219,15]
[327893529,1716583845025,-500.0,0.00028219,15]
[327893530,1716583845034,-673.85,0.00028219,15]
[327893531,1716583845043,-2040.19,0.00028219,15]
[327893532,1716583845052,-999.87,0.00028219,15]
[327893533,1716583845062,-500.0,0.00028219,15]
[327893534,1716583845071,-156.56985226,0.00028482,2]
[327893535,1716583845080,-500.0,0.00028493,16]
[327893536,1716583845090,-500.0,0.00028493,16]
[327893537,1716583845099,-500.0,0.00028493,16]
[327893538,1716583845109,-781.99,0.00028493,16]
[327893539,1716583845118,-500.0,0.00028493,16]
[327893540,1716583845127,-500.0,0.00028493,16]
[327893541,1716583845136,-500.0,0.00028493,16]
[327893542,1716583845144,-744.22,0.00028493,16]
[327893543,1716583845152,-1992.29,0.00028493,16]
[327893544,1716583845161,-1621.54,0.00028493,16]
[327893545,1716583845169,-621.24480575,0.00028493,16]
[327893546,1716583845178,-673.85,0.00028493,16]
[327893547,1716583845188,-2040.19,0.00028493,16]
[327893548,1716583845197,-999.87,0.00028493,16]
[327893549,1716583845206,-500.0,0.00028493,16]
[327893550,1716583845215,-786.34825278,0.00028618,2]
[327893551,1716583845224,-500.0,0.00028767,17]
[327893552,1716583845234,-500.0,0.00028767,17]
[327893553,1716583845244,-496.28,0.00028767,17]
[327893554,1716583845253,-781.99,0.00028767,17]
[327893555,1716583845263,-309.47594837,0.00028767,17]
[327893556,1716583845272,-358.32812072,0.00028767,17]
[327893557,1716583845281,-500.0,0.00028767,17]
[327893558,1716583845290,-744.22,0.00028767,17]
[327893559,1716583845298,-1992.29,0.00028767,17]
[327893560,1716583845308,-1621.54,0.00028767,17]
[327893561,1716583845318,-673.85,0.00028767,17]
[327893562,1716583845327,-2040.19,0.00028767,17]
[327893563,1716583845337,-999.87,0.00028767,17]
[327893564,1716583845346,-500.0,0.00028767,17]
[327893565,1716583845356,-320.99767926,0.00029041,18]
[327893566,1716583845365,-500.0,0.00029041,18]
[327893567,1716583845374,-781.99,0.00029041,18]
[327893568,1716583845383,-500.0,0.00029041,18]
[327893569,1716583845393,-744.22,0.00029041,18]
[327893570,1716583845402,-1992.29,0.00029041,18]
[327893571,1716583845412,-1621.54,0.00029041,18]
[327893572,1716583845421,-673.85,0.00029041,18]
[327893573,1716583845430,-2040.19,0.00029041,18]
[327893574,1716583845439,-999.87,0.00029041,18]
[327893575,1716583845448,-500.0,0.00029041,18]
[327893576,1716583845457,-592.84082224,0.00029158,2]
[327893577,1716583845467,-592.84082224,0.00029259,2]
[327893578,1716583845476,-2250.77,0.00029292,3]
[327893579,1716583845486,-2000.0,0.00029293,2]
[327893580,1716583845495,-1038.41,0.00029314,16]
[327893581,1716583845504,-500.0,0.00029315,19]
[327893582,1716583845513,-781.99,0.00029315,19]
[327893583,1716583845522,-500.0,0.00029315,19]
[327893584,1716583845531,-744.22,0.00029315,19]
[327893585,1716583845540,-1992.29,0.00029315,19]
[327893586,1716583845550,-1621.54,0.00029315,19]
[327893587,1716583845559,-673.85,0.00029315,19]
[327893588,1716583845567,-2040.19,0.00029315,19]
[327893589,1716583845576,-999.87,0.00029315,19]
[327893590,1716583845585,-592.84082224,0.00029361,2]
[327893591,1716583845594,-592.84082224,0.00029367,2]
[327893592,1716583845603,-209.541,0.0002947,2]
[327893593,1716583845612,-152.71459282,0.00029503,2]
[327893594,1716583845621,-592.84082224,0.00029528,2]
[327893595,1716583845630,-152.71459282,0.00029543,2]
[327893596,1716583845640,-592.84082224,0.00029547,2]
[327893597,1716583845649,-500.0,0.00029589,20]
[327893598,1716583845658,-781.99,0.00029589,20]
[327893599,1716583845667,-410.11,0.00029589,20]
[327893600,1716583845676,-744.22,0.00029589,20]
[327893601,1716583845685,-1992.29,0.00029589,20]
[327893602,1716583845694,-1621.54,0.00029589,20]
[327893603,1716583845703,-673.85,0.00029589,20]
[327893604,1716583845712,-2040.19,0.00029589,20]
[327893605,1716583845722,-999.87,0.00029589,20]
[327893607,1716583845731,-592.84082224,0.00029756,2]
[327893608,1716583845742,-592.84082224,0.00029836,2]
[327893609,1716583845751,-592.84082224,0.00029841,2]
[327893610,1716583845760,-500.0,0.00029863,21]
[327893611,1716583845769,-781.99,0.00029863,21]
[327893612,1716583845778,-744.22,0.00029863,21]
[327893613,1716583845787,-1992.29,0.00029863,21]
[327893614,1716583845796,-1621.54,0.00029863,21]
[327893615,1716583845911,-673.85,0.00029863,21]
[327893616,1716583845921,-2040.19,0.00029863,21]
[327893617,1716583845931,-999.87,0.00029863,21]
[327893618,1716583845940,-1038.41,0.00029999,17]
[327893619,1716583845950,-2250.77,0.00029999,3]
[327893620,1716583845959,-18219.02878601,0.0003,2]
[327893621,1716583845968,-154.82968734,0.0003,4]
[327893622,1716583845978,-783.85662241,0.0003,4]
[327893623,1716583845988,-17243.67081528,0.0003,10]
[327893624,1716583845997,-1210.78934384,0.0003,3]
[327893625,1716583846006,-150.0,0.0003,2]
[327893626,1716583846016,-1210.66841003,0.0003,3]
[327893627,1716583846031,-284.0,0.0003,2]
[327893628,1716583846040,-592.84082224,0.00030033,7]
[327893629,1716583846050,-592.84082224,0.00030042,7]
[327893630,1716583846060,-500.0,0.00030136,22]
[327893631,1716583846070,-781.99,0.00030136,22]
[327893632,1716583846079,-744.22,0.00030136,22]
[327893633,1716583846089,-1992.29,0.00030136,22]
[327893634,1716583846101,-1621.54,0.00030136,22]
[327893635,1716583846110,-673.85,0.00030136,21]
[327893637,1716583846119,-2040.19,0.00030136,22]
[327893639,1716583846130,-999.87,0.00030136,22]
[327893640,1716583846139,-400.0,0.00030137,30]
[327893642,1716583846149,-357.678454,0.0003031,2]
[327893643,1716583846158,-418.0,0.000304,3]
[327893645,1716583846167,-2250.77,0.00030409,3]
[327893646,1716583846177,-565.92,0.0003041,23]
[327893647,1716583846187,-781.99,0.0003041,23]
[327893648,1716583846200,-744.22,0.0003041,23]
[327893649,1716583846210,-1992.29,0.0003041,23]
[327893650,1716583846220,-1621.54,0.0003041,23]
[327893651,1716583846229,-673.85,0.0003041,21]
[327893652,1716583846239,-2040.19,0.0003041,23]
[327893653,1716583846249,-999.87,0.0003041,23]
[327893654,1716583846258,-150.0,0.00030411,2]
[327893655,1716583846268,-156.3060521,0.00030438,7]
[327893656,1716583846278,-204.6274004,0.0003044,2]
[327893657,1716583846288,-204.6274004,0.0003044,2]
[327893658,1716583846298,-204.6274004,0.0003044,2]
[327893659,1716583846307,-204.6274004,0.0003044,2]
[327893660,1716583846317,-152.71459282,0.00030469,7]
[327893662,1716583846326,-152.71459282,0.00030492,7]
[327893663,1716583846336,-1038.41,0.00030497,18]
[327893664,1716583846346,-2558.33518356,0.00030497,30]
[327893665,1716583846356,-592.84082224,0.00030509,7]
[327893666,1716583846366,-152.71459282,0.00030617,7]
[327893667,1716583846376,-781.99,0.00030684,24]
[327893668,1716583846386,-744.22,0.00030684,24]
[327893669,1716583846396,-1992.29,0.00030684,24]
[327893670,1716583846406,-1621.54,0.00030684,24]
[327893671,1716583846415,-673.85,0.00030684,21]
[327893672,1716583846426,-2040.19,0.00030684,24]
[327893673,1716583846436,-999.87,0.00030684,24]
[327893674,1716583846446,-1235.44136441,0.0003069,3]
[327893676,1716583846455,-150.81901718,0.00030691,2]
[327893677,1716583846465,-342.9726524,0.00030708,2]
[327893678,1716583846475,-592.84082224,0.00030714,7]
[327893679,1716583846484,-417.57091557,0.00030746,2]
[327893680,1716583846495,-592.84082224,0.00030753,7]
[327893681,1716583846504,-4226.56801723,0.00030921,2]
[327893682,1716583846513,-592.84082224,0.00030948,7]
[327893683,1716583846523,-782.11,0.00030958,25]
[327893684,1716583846533,-744.37301034,0.00030958,25]
[327893685,1716583846543,-1992.44,0.00030958,25]
[327893686,1716583846552,-1621.71,0.00030958,25]
[327893687,1716583846562,-673.98,0.00030958,21]
[327893688,1716583846572,-2040.35860682,0.00030958,25]
[327893689,1716583846581,-1000.02507981,0.00030958,25]
[327893690,1716583846590,-194.07135861,0.00030994,4]
[327893691,1716583846599,-772.02658236,0.00030994,4]
[327893692,1716583846608,-3106.60264652,0.00030996,4]
[327893693,1716583846715,-4790.70723609,0.00030996,4]
[327893694,1716583846724,-1384.07749864,0.00030996,3]
[327893695,1716583846736,-866.69250136,0.00030996,3]
[327893696,1716583846746,-131.32956232,0.00030997,14]
[327893697,1716583847045,-302.8671087,0.00024657,2]
[327893698,1716583847058,-197.1328913,0.00024657,2]
[327893699,1716583847068,-500.0,0.00024657,2]
[327893700,1716583847077,-500.0,0.00024657,2]
[327893701,1716583847086,-500.0,0.00024931,3]
[327893702,1716583847101,-500.0,0.00024931,3]
[327893703,1716583847112,-39679.1396883,0.00025195,3]
[327893704,1716583847155,-1098.90829827,0.00020913,2]
[327893705,1716583847171,-240.5929901,0.00020913,2]
[327893706,1716583847181,-122.66645432,0.00025195,3]
[327893707,1716583847295,-680.01683237,0.00025195,3]
[327893708,1716583847311,-262.30619758,0.00025195,3]
[327893715,1716583882385,223.07296701,9.999e-05,2]
[327893716,1716583882406,172.53311195,9.999e-05,2]
[327893717,1716583940764,2436.22873736,9.999e-05,2]
[327893718,1716583941512,223.07296701,9.999e-05,2]
[327893719,1716583946426,154.82968734,9.999e-05,2]
[327893720,1716583951366,3403.61111582,9.999e-05,2]
[327893721,1716583959280,156.6748638,9.999e-05,2]
[327893722,1716583966583,483.41447272,9.999e-05,2]
[327893723,1716583972175,672.11614523,9.999e-05,2]
[327893724,1716583977391,1043.9787751,9.999e-05,2]
[327893727,1716583997634,521.71519389,9.999e-05,2]
[327893746,1716584452152,371.76447781,9.999e-05,2]
[327893747,1716584463816,156.57389491,9.999e-05,2]
[327893748,1716584465754,291.93026943,9.999e-05,2]
[327893749,1716584477755,292.52587306,0.00011746,2]
[327893750,1716584494294,772.71271102,9.999e-05,2]
[327893751,1716584500462,1043.9787751,9.999e-05,2]
[327893752,1716584506371,285.2556899,9.999e-05,2]
[327893753,1716584547339,202.176254,0.00014659,2]
[327893754,1716584829178,-1781.76259512,0.00015286,2]
[327893755,1716584845103,-117.32573144,0.00015286,2]
[327893756,1716584845125,-154.49254603,0.00015286,2]
[327893757,1716584914881,1869.77973806,9.999e-05,2]
[327893758,1716584949146,-15000.0,0.00015184,2]
[327893759,1716584949167,-7782.05939271,0.00015185,2]
[327893760,1716584949187,-59438.70294732,0.00015185,2]
[327893761,1716584949213,-3064.3909481,0.00015186,2]
[327893762,1716584949233,-154.82968734,0.00015186,2]
[327893763,1716584949253,-1403.26792763,0.00015186,2]
[327893764,1716584949273,-604.98780484,0.00015187,2]
[327893765,1716584949294,-521.55640442,0.0001519,2]
[327893766,1716584949315,-710.90512721,0.00015285,2]
[327893767,1716584949340,-155.04636224,0.00015286,2]
[327893768,1716584949359,-1582.09247572,0.0001529,2]
[327893769,1716584949383,-366.67698101,0.00015293,2]
[327893770,1716584949407,-24900.0,0.00015298,2]
[327893771,1716584949431,-154.15537884,0.00015478,2]
[327893772,1716584949638,-837.617847,0.00015578,2]
[327893773,1716584949660,-156.56985226,0.00015657,2]
[327893774,1716584949680,-284.12075704,0.00015657,2]
[327893775,1716584949701,-379.57167218,0.00015658,2]
[327893776,1716584949722,-469.94330626,0.00015661,2]
[327893777,1716584949743,-186.82620371,0.00015661,2]
[327893778,1716584949764,-490.6050261,0.0001587,2]
[327893779,1716584949787,-521.55640439,0.00017791,2]
[327893780,1716584949807,-771.16498725,0.00018212,2]
[327893781,1716584955181,-154.15537881,0.0001887,2]
[327893782,1716584955202,-210.68744816,0.000189,2]
[327893784,1716584998027,146.69825744,0.00018323,2]
[327893785,1716585002002,190.30351455,9.999e-05,2]
[327893786,1716585002027,201.81586211,9.999e-05,2]
[327893787,1716585002049,233.83429724,9.999e-05,2]
[327893788,1716585002071,249.21109701,9.999e-05,2]
[327893848,1716585038539,-3064.3909481,0.00018107,2]
[327893849,1716585038549,-832.504839,0.00018108,2]
[327893850,1716585038559,-402.52581736,0.00018323,2]
[327893851,1716585038568,-155.07145288,0.00018899,2]
[327893852,1716585038577,-58.19256147,0.000189,2]
[327893853,1716585038586,-720.27106202,0.00019175,2]
[327893854,1716585038595,-230.90684664,0.00019175,2]
[327893855,1716585038604,-487.94829849,0.00019176,2]
[327893857,1716585038613,-14845.50745397,0.00019177,2]
[327893859,1716585038623,-11798.66742076,0.00019177,2]
[327893861,1716585038632,-166.891988,0.00019178,2]
[327893863,1716585038641,-181.08892415,0.00020342,2]
[327893865,1716585038650,-154.94505041,0.00020911,2]
[327893866,1716585038659,-158.58875339,0.00020911,2]
[327893868,1716585038668,-347.85581766,0.00020911,2]
[327893870,1716585038678,-7871.76437158,0.00020912,2]
[327893872,1716585038687,-500.0,0.00020913,2]
[327893873,1716585038708,-500.0,0.00020913,2]
[327893874,1716585038718,-500.0,0.00020913,2]
[327893875,1716585038728,-500.0,0.00020913,2]
[327893876,1716585038737,-511.47471611,0.00020913,2]
[327893877,1716585038746,-500.0,0.00020913,2]
[327893878,1716585038756,-371.59668125,0.00020913,2]
[327893879,1716585038766,-558.114351,0.00020913,2]
[327893880,1716585038776,-500.0,0.00020913,2]
[327893881,1716585038786,-440.84801443,0.00020913,2]
[327893882,1716585038797,-550.0,0.00020913,2]
[327893883,1716585038807,-450.51816865,0.00020913,2]
[327893884,1716585038816,-500.0,0.00020913,2]
[327893885,1716585038826,-500.0,0.00020913,2]
[327893886,1716585038836,-500.0,0.00020913,2]
[327893887,1716585038846,-608.20930307,0.00020913,2]
[327893888,1716585038856,-500.0,0.00020913,2]
[327893889,1716585038865,-500.0,0.00020913,2]
[327893890,1716585038876,-500.0,0.00020913,2]
[327893891,1716585038885,-587.52995903,0.00020913,2]
[327893892,1716585038895,-500.0,0.00020913,2]
[327893893,1716585038904,-500.0,0.00020913,2]
[327893894,1716585038914,-500.0,0.00020913,2]
[327893895,1716585038923,-500.0,0.00020913,2]
[327893896,1716585038933,-500.0,0.00020913,2]
[327893897,1716585038943,-500.0,0.00020913,2]
[327893898,1716585038952,-500.0,0.00020913,2]
[327893899,1716585038961,-500.0,0.00020913,2]
[327893900,1716585038971,-500.0,0.00020913,2]
[327893901,1716585038980,-500.0,0.00020913,2]
[327893902,1716585038989,-500.0,0.00020913,2]
[327893903,1716585038999,-500.0,0.00020913,2]
[327893904,1716585039008,-500.0,0.00020913,2]
[327893905,1716585039018,-500.0,0.00020913,2]
[327893906,1716585039027,-500.0,0.00020913,2]
[327893907,1716585039037,-500.0,0.00020913,2]
[327893908,1716585039048,-500.0,0.00020913,2]
[327893909,1716585039058,-500.0,0.00020913,2]
[327893910,1716585039069,-500.0,0.00020913,2]
[327893911,1716585039079,-500.0,0.00020913,2]
[327893912,1716585039089,-500.0,0.00020913,2]
[327893913,1716585039099,-500.0,0.00020913,2]
[327893914,1716585039108,-500.0,0.00020913,2]
[327893915,1716585039118,-500.0,0.00020913,2]
[327893916,1716585039128,-500.0,0.00020913,2]
[327893917,1716585039138,-500.0,0.00020913,2]
[327893918,1716585039148,-500.0,0.00020913,2]
[327893919,1716585039158,-500.0,0.00020913,2]
[327893920,1716585039167,-500.0,0.00020913,2]
[327893921,1716585039176,-500.0,0.00020913,2]
[327893922,1716585039186,-500.0,0.00020913,2]
[327893923,1716585039195,-500.0,0.00020913,2]
[327893924,1716585039204,-500.0,0.00020913,2]
[327893925,1716585039214,-500.0,0.00020913,2]
[327893926,1716585039223,-500.0,0.00020913,2]
[327893927,1716585039233,-500.0,0.00020913,2]
[327893928,1716585039242,-500.0,0.00020913,2]
[327893929,1716585039252,-154.15537881,0.00022261,2]
[327893930,1716585039262,-151.0,0.00023598,5]
[327893931,1716585039271,-635.42636315,0.00023752,2]
[327893932,1716585039281,-268.88000963,0.000239,2]
[327893933,1716585039291,-151.0,0.00024362,5]
[327893934,1716585039301,-196.372221,0.00024384,2]
[327893935,1716585039311,-321.910608,0.00024384,2]
[327893936,1716585039321,-500.0,0.00024657,2]
[327893937,1716585039330,-500.0,0.00024657,2]
[327893938,1716585039340,-500.0,0.00024657,2]
[327893939,1716585039349,-250.0,0.00024657,2]
[327893940,1716585039359,-500.0,0.00024657,2]
[327893941,1716585039369,-500.0,0.00024657,2]
[327893942,1716585039379,-500.0,0.00024657,2]
[327893943,1716585039388,-371.29108321,0.00024657,2]
[327893944,1716585039401,-500.0,0.00024657,2]
[327893945,1716585039410,-500.0,0.00024657,2]
[327893946,1716585039420,-500.0,0.00024657,2]
[327893947,1716585039430,-500.0,0.00024657,2]
[327893948,1716585039440,-500.0,0.00024657,2]
[327893949,1716585039450,-500.0,0.00024657,2]
[327893950,1716585039459,-500.0,0.00024657,2]
[327893951,1716585039469,-500.0,0.00024657,2]
[327893952,1716585039481,-500.0,0.00024657,2]
[327893953,1716585039491,-500.0,0.00024657,2]
[327893954,1716585039500,-500.0,0.00024657,2]
[327893955,1716585039510,-500.0,0.00024657,2]
[327893956,1716585039519,-500.0,0.00024657,2]
[327893957,1716585039529,-500.0,0.00024657,2]
[327893958,1716585039539,-500.0,0.00024657,2]
[327893959,1716585039551,-500.0,0.00024657,2]
[327893960,1716585039560,-500.0,0.00024657,2]
[327893961,1716585039569,-291.78718954,0.00024657,2]
[327893962,1716585039579,-500.0,0.00024657,2]
[327893963,1716585039589,-500.0,0.00024657,2]
[327893964,1716585039598,-500.0,0.00024657,2]
[327893965,1716585039608,-500.0,0.00024657,2]
[327893966,1716585039617,-500.0,0.00024657,2]
[327893967,1716585039627,-500.0,0.00024657,2]
[327893968,1716585039636,-500.0,0.00024657,2]
[327893969,1716585039646,-500.0,0.00024657,2]
[327893970,1716585039655,-500.0,0.00024657,2]
[327893971,1716585039664,-500.0,0.00024657,2]
[327893972,1716585039674,-500.0,0.00024657,2]
[327893973,1716585039684,-500.0,0.00024657,2]
[327893974,1716585039693,-500.0,0.00024657,2]
[327893975,1716585039703,-500.0,0.00024657,2]
[327893976,1716585039712,-500.0,0.00024657,2]
[327893977,1716585039722,-500.0,0.00024657,2]
[327893978,1716585039732,-500.0,0.00024657,2]
[327893979,1716585039742,-500.0,0.00024657,2]
[327893980,1716585039751,-500.0,0.00024657,2]
[327893981,1716585039761,-500.0,0.00024657,2]
[327893982,1716585039771,-500.0,0.00024657,2]
[327893983,1716585039780,-500.0,0.00024657,2]
[327893984,1716585039790,-500.0,0.00024657,2]
[327893985,1716585039801,-912.66,0.00024657,2]
[327893986,1716585039810,-912.66,0.00024657,3]
[327893987,1716585039820,-912.66,0.00024657,4]
[327893988,1716585039830,-912.66,0.00024657,5]
[327893989,1716585039839,-500.0,0.00024657,2]
[327893990,1716585039849,-631.2937173,0.00024657,2]
[327893991,1716585039859,-500.0,0.00024657,2]
[327893992,1716585039869,-500.0,0.00024657,2]
[327893993,1716585039878,-500.0,0.00024657,2]
[327893994,1716585039888,-811.22,0.00024657,2]
[327893995,1716585039897,-500.0,0.00024657,2]
[327893996,1716585039907,-500.0,0.00024657,2]
[327893997,1716585039916,-500.0,0.00024657,2]
[327893998,1716585039926,-500.0,0.00024657,2]
[327894000,1716585039936,-1687.09,0.00024657,2]
[327894001,1716585039945,-773.36,0.00024657,2]
[327894002,1716585039955,-500.0,0.00024657,2]
[327894003,1716585039964,-500.0,0.00024657,2]
[327894004,1716585039974,-500.0,0.00024657,2]
[327894005,1716585039983,-500.0,0.00024657,2]
[327894007,1716585039993,-500.0,0.00024657,2]
[327894009,1716585040002,-1818.39,0.00024657,3]
[327894010,1716585040012,-1818.39,0.00024657,3]
[327894011,1716585040022,-1818.39,0.00024657,3]
[327894012,1716585040031,-500.0,0.00024657,2]
[327894013,1716585040041,-1818.39,0.00024657,3]
[327894014,1716585040051,-500.0,0.00024657,2]
[327894015,1716585040061,-500.0,0.00024657,2]
[327894016,1716585040071,-500.0,0.00024657,2]
[327894017,1716585040080,-500.0,0.00024657,2]
[327894018,1716585040090,-500.0,0.00024657,2]
[327894019,1716585040099,-412.63244144,0.00024657,2]
[327894020,1716585040110,-2146.5,0.00024657,2]
[327894021,1716585040120,-500.0,0.00024657,2]
[327894022,1716585040129,-500.0,0.00024657,2]
[327894023,1716585040138,-500.0,0.00024657,2]
[327894024,1716585040148,-730.35,0.00024657,2]
[327894025,1716585040157,-523.80078722,0.00024657,2]
[327894026,1716585040167,-500.0,0.00024657,2]
[327894027,1716585040176,-500.0,0.00024657,2]
[327894028,1716585040186,-500.0,0.00024657,2]
[327894029,1716585040195,-433.34029675,0.00024657,2]
[327894030,1716585040204,-500.0,0.00024657,2]
[327894031,1716585040213,-500.0,0.00024657,2]
[327894032,1716585040223,-500.0,0.00024657,2]
[327894033,1716585040232,-2258.06,0.00024657,2]
[327894034,1716585040241,-500.0,0.00024657,2]
[327894035,1716585040251,-500.0,0.00024657,2]
[327894036,1716585040260,-500.0,0.00024657,2]
[327894037,1716585040270,-500.0,0.00024657,2]
[327894038,1716585040279,-500.0,0.00024657,2]
[327894039,1716585040289,-500.0,0.00024657,2]
[327894040,1716585040298,-500.0,0.00024657,2]
[327894041,1716585040308,-500.0,0.00024657,2]
[327894042,1716585040317,-500.0,0.00024657,2]
[327894043,1716585040327,-500.0,0.00024657,2]
[327894044,1716585040337,-502.29722792,0.00024657,2]
[327894045,1716585040347,-500.0,0.00024657,2]
[327894046,1716585040356,-500.0,0.00024657,2]
[327894047,1716585040366,-500.0,0.00024657,2]
[327894048,1716585040376,-500.0,0.00024657,2]
[327894049,1716585040385,-500.0,0.00024657,2]
[327894050,1716585040397,-500.0,0.00024657,2]
[327894051,1716585040409,-500.0,0.00024657,2]
[327894052,1716585040420,-1176.13,0.00024657,2]
[327894053,1716585040431,-500.0,0.00024657,2]
[327894054,1716585040444,-500.0,0.00024657,2]
[327894055,1716585040455,-500.0,0.00024657,2]
[327894056,1716585040465,-500.0,0.00024657,2]
[327894057,1716585040476,-500.0,0.00024657,2]
[327894058,1716585040490,-500.0,0.00024657,2]
[327894059,1716585040502,-500.0,0.00024657,2]
[327894060,1716585040513,-500.0,0.00024657,2]
[327894061,1716585040524,-500.0,0.00024657,2]
[327894062,1716585040535,-202.28300314,0.00024657,2]
[327894063,1716585040550,-500.0,0.00024657,2]
[327894064,1716585040562,-500.0,0.00024657,2]
[327894065,1716585040575,-500.0,0.00024657,2]
[327894066,1716585040585,-500.0,0.00024657,3]
[327894067,1716585040596,-500.0,0.00024657,2]
[327894068,1716585040608,-500.0,0.00024657,4]
[327894069,1716585040619,-500.0,0.00024657,2]
[327894070,1716585040630,-380.0,0.00024658,2]
[327894071,1716585040640,-912.66,0.0002493,6]
[327894072,1716585040652,-1818.39,0.0002493,3]
[327894073,1716585040662,-500.0,0.00024931,3]
[327894074,1716585040673,-500.0,0.00024931,3]
[327894075,1716585040683,-500.0,0.00024931,3]
[327894076,1716585040693,-250.0,0.00024931,3]
[327894077,1716585040703,-186.26335302,0.00024931,3]
[327894081,1716585040861,-500.0,0.00024931,3]
[327894083,1716585040870,-500.0,0.00024931,3]
[327894084,1716585040879,-500.0,0.00024931,3]
[327894085,1716585040888,-500.0,0.00024931,3]
[327894086,1716585040897,-500.0,0.00024931,3]
[327894087,1716585040907,-500.0,0.00024931,3]
[327894088,1716585040916,-500.0,0.00024931,3]
[327894089,1716585040925,-500.0,0.00024931,3]
[327894090,1716585040934,-500.0,0.00024931,3]
[327894091,1716585040943,-500.0,0.00024931,3]
[327894092,1716585040953,-500.0,0.00024931,3]
[327894093,1716585040962,-500.0,0.00024931,3]
[327894094,1716585040971,-500.0,0.00024931,3]
[327894095,1716585040980,-500.0,0.00024931,3]
[327894096,1716585040989,-500.0,0.00024931,3]
[327894097,1716585040998,-500.0,0.00024931,3]
[327894098,1716585041007,-640.86,0.00024931,3]
[327894099,1716585041016,-500.0,0.00024931,3]
[327894100,1716585041025,-500.0,0.00024931,3]
[327894101,1716585041034,-500.0,0.00024931,3]
[327894102,1716585041044,-500.0,0.00024931,3]
[327894103,1716585041057,-500.0,0.00024931,3]
[327894104,1716585041066,-500.0,0.00024931,3]
[327894105,1716585041075,-500.0,0.00024931,3]
[327894106,1716585041084,-500.0,0.00024931,3]
[327894107,1716585041093,-595.96641044,0.00024931,3]
[327894108,1716585041103,-500.0,0.00024931,3]
[327894109,1716585041113,-500.0,0.00024931,3]
[327894110,1716585041121,-500.0,0.00024931,3]
[327894111,1716585041130,-500.0,0.00024931,3]
[327894112,1716585041140,-500.0,0.00024931,3]
[327894113,1716585041149,-500.0,0.00024931,3]
[327894114,1716585041158,-500.0,0.00024931,3]
[327894115,1716585041167,-500.0,0.00024931,3]
[327894116,1716585041177,-500.0,0.00024931,3]
[327894117,1716585041187,-500.0,0.00024931,3]
[327894118,1716585041196,-500.0,0.00024931,3]
[327894119,1716585041205,-500.0,0.00024931,3]
[327894120,1716585041214,-500.0,0.00024931,3]
[327894121,1716585041223,-500.0,0.00024931,3]
[327894122,1716585041232,-811.22,0.00024931,3]
[327894123,1716585041241,-500.0,0.00024931,3]
[327894124,1716585041251,-500.0,0.00024931,3]
[327894125,1716585041260,-500.0,0.00024931,3]
[327894126,1716585041269,-1687.09,0.00024931,3]
[327894127,1716585041279,-773.36,0.00024931,3]
[327894128,1716585041288,-500.0,0.00024931,3]
[327894129,1716585041301,-500.0,0.00024931,3]
[327894130,1716585041311,-500.0,0.00024931,3]
[327894131,1716585041320,-500.0,0.00024931,3]
[327894132,1716585041329,-500.0,0.00024931,3]
[327894133,1716585041338,-500.0,0.00024931,3]